bitfinex/quotes_ETHUSD_20241003
["timestamp","ask_amount","ask_price","bid_price","bid_amount"]
[1727984437608,5.03641,2353.6,2353.3,0.09354384]
[1727984437808,4.24902,2353.5,2353.3,0.09354384]
[1727984438032,4.24902,2353.5,2353.1,0.8154]
[1727984438033,4.24917,2353.4,2353.1,0.8154]
[1727984438255,4.24917,2353.4,2353.2,0.09353199]
[1727984438469,4.24935,2353.3,2353.2,0.09353199]
[1727984438602,4.2492,2353.4,2353.2,0.09353199]
[1727984438802,4.2492,2353.4,2352.9,5.06119]
[1727984438803,4.2492,2353.4,2353.0,4.2498]
[1727984439062,4.2492,2353.4,2353.1,0.0936385]
[1727984439554,4.249,2353.5,2353.1,4.3433285]
[1727984439758,5.965036,2353.6,2353.1,4.3433285]
[1727984439759,4.24884,2353.6,2353.2,5.07317]
[1727984440108,4.24884,2353.6,2353.3,0.09351227]
[1727984441860,3.7795,2353.8,2353.3,4.34271227]
[1727984442057,4.24875,2353.7,2353.3,4.34271227]
[1727984442406,4.24881,2353.6,2353.3,0.09351227]
[1727984442710,4.24917,2353.4,2353.3,0.09351227]
[1727984443548,4.249,2353.5,2353.1,4.24969]
[1727984443720,8.49816,2353.5,2353.3,0.09084166]
[1727984443925,8.49816,2353.5,2353.2,0.09090477]
[1727984444142,4.249,2353.5,2353.4,0.09077855]
[1727984444345,4.249,2353.5,2353.3,0.09084166]
[1727984444542,4.249,2353.5,2353.4,0.09081406]
[1727984444926,4.249,2353.5,2353.1,4.24969]
[1727984445107,4.249,2353.5,2353.0,0.778]
[1727984445108,4.249,2353.5,2353.4,0.09081406]
[1727984445438,4.24918,2353.4,2353.0,5.02784]
[1727984445638,4.24903,2353.5,2353.0,6.96548102]
[1727984447730,8.49815,2353.5,2353.0,6.96548102]
[1727984449443,4.24903,2353.5,2353.1,4.2496]
[1727984449652,0.8155,2354.0,2353.5,4.24881]
[1727984449827,0.8155,2354.0,2353.6,0.8191]
[1727984449828,4.24835,2353.9,2353.6,0.8191]
[1727984450689,8.49679,2353.9,2353.6,0.8191]
[1727984450853,4.24835,2353.9,2353.6,0.8191]
[1727984451240,8.4967,2353.9,2353.6,0.8191]
[1727984451887,4.24852,2353.8,2353.2,8.31560914]
[1727984452099,4.2487,2353.7,2353.3,5.03329]
[1727984453241,4.24881,2353.6,2353.3,0.784]
[1727984453447,4.2487,2353.7,2353.3,5.03333]
[1727984456046,8.4975,2353.7,2353.3,5.03333]
[1727984456849,8.4975,2353.7,2353.1,4.24966]
[1727984456850,5.07319,2353.6,2353.2,4.24951]
[1727984457300,4.24899,2353.5,2353.1,5.01256]
[1727984457477,4.24922,2353.4,2353.1,0.7629]
[1727984457703,4.24899,2353.5,2353.1,5.01259]
[1727984458196,4.24918,2353.4,2353.1,0.7629]
[1727984458691,0.8243,2353.6,2353.1,0.7629]
[1727984458855,4.24883,2353.6,2353.2,4.24943]
[1727984459046,4.24849,2353.8,2353.4,0.8289]
[1727984459250,4.24871,2353.7,2353.4,0.8289]
[1727984459849,4.24871,2353.7,2353.5,0.08795441]
[1727984460298,5.01721,2353.6,2353.5,0.08795441]
[1727984460800,4.24928,2353.4,2353.1,0.7659]
[1727984461297,4.24946,2353.3,2352.9,6.3946093]
[1727984462119,4.24928,2353.4,2352.9,6.3946093]
[1727984462291,4.24928,2353.4,2353.0,4.24985]
[1727984463177,4.24943,2353.3,2352.9,2.1445793]
[1727984463376,4.24943,2353.3,2352.9,6.3945193]
[1727984464331,4.24928,2353.4,2352.9,6.3945193]
[1727984464616,4.24928,2353.4,2353.0,4.24987]
[1727984464993,8.4986,2353.4,2353.0,4.24987]
[1727984465322,4.24972,2353.1,2352.9,2.1445793]
[1727984465482,0.7794,2353.2,2352.9,1.3352793]
[1727984465811,5.02893,2353.2,2352.9,1.3352793]
[1727984466020,4.24974,2353.1,2352.9,1.3352793]
[1727984466577,0.7794,2353.6,2353.0,0.7511]
[1727984466782,0.80894,2353.6,2353.0,4.81730914]
[1727984467017,7.31,2353.8,2353.5,4.24892]
[1727984467218,11.55845,2353.8,2353.4,4.24901]
[1727984467717,11.55845,2353.8,2353.3,0.8224]
[1727984467718,4.2487,2353.7,2353.3,5.0717]
[1727984468022,7.31,2353.8,2353.3,0.8224]
[1727984468174,7.31,2353.8,2353.1,1.3352793]
[1727984468175,4.2491,2353.5,2353.1,4.24968]
[1727984468382,4.24927,2353.4,2353.1,0.8224]
[1727984468575,0.7582,2353.6,2353.1,0.8224]
[1727984468825,4.24926,2353.4,2353.1,0.8224]
[1727984469437,0.731,2353.7,2352.7,2.1502793]
[1727984469438,4.25007,2352.9,2352.7,2.1502793]
[1727984469634,4.25007,2352.9,2352.6,1.3352793]
[1727984469635,4.25043,2352.7,2352.6,1.3352793]
[1727984469836,4.25043,2352.7,2352.4,1.3352793]
[1727984469837,4.25061,2352.6,2352.4,1.3352793]
[1727984470258,4.25061,2352.6,2352.3,0.8051]
[1727984470478,0.8092,2352.9,2352.3,5.05619]
[1727984470634,5.0593,2352.9,2352.4,4.25081]
[1727984470845,5.0593,2352.9,2352.3,0.8051]
[1727984470846,4.25074,2352.6,2352.3,0.8051]
[1727984471044,4.25074,2352.6,2352.1,5.05658]
[1727984471959,4.25074,2352.6,2352.1,5.05653]
[1727984472547,4.2507,2352.6,2352.1,5.05653]
[1727984473181,0.8131,2352.5,2352.1,5.05653]
[1727984473388,4.25105,2352.4,2352.1,0.8051]
[1727984474677,4.25041,2352.8,2352.3,4.25111]
[1727984474882,4.25051,2352.7,2352.3,4.25111]
[1727984475045,4.25041,2352.8,2352.4,4.33439186]
[1727984475046,4.25028,2352.8,2352.4,4.33439186]
[1727984475244,1.32513,2352.9,2352.5,4.25076]
[1727984475465,4.32513,2352.9,2352.6,0.08330555]
[1727984475643,3.50593,2352.9,2352.6,0.08330555]
[1727984476459,3.0,2352.9,2352.6,0.08330555]
[1727984476979,4.24998,2353.0,2352.7,0.8321]
[1727984477166,3.0,2353.1,2352.9,4.06620914]
[1727984477557,3.0,2353.1,2353.0,0.0829622]
[1727984478090,7.24971,2353.1,2353.0,0.0829622]
[1727984478386,8.481563,2353.1,2353.0,0.0829622]
[1727984478569,8.481563,2353.1,2352.7,4.89830914]
[1727984478883,7.24971,2353.1,2352.7,4.89830914]
[1727984479184,4.25,2353.0,2352.8,0.08302531]
[1727984479678,4.24998,2353.0,2352.9,0.08296217]
[1727984480053,4.24998,2353.0,2352.7,4.89830914]
[1727984480247,4.24973,2353.1,2352.8,0.08302531]
[1727984480452,4.24973,2353.1,2352.9,4.06620914]
[1727984480649,7.24973,2353.1,2353.0,0.08309241]
[1727984480980,4.53185,2353.1,2352.8,4.25024]
[1727984481179,4.24955,2353.2,2353.0,0.08309241]
[1727984481505,4.24955,2353.2,2353.1,0.08302929]
[1727984481848,4.24982,2353.1,2352.7,4.89830914]
[1727984482049,4.24982,2353.1,2352.8,0.08321867]
[1727984482250,4.24982,2353.1,2352.7,4.89830914]
[1727984482558,4.2499,2353.0,2352.8,0.08321867]
[1727984482963,4.2499,2353.0,2352.7,4.89830914]
[1727984483163,4.24982,2353.1,2352.7,4.89830914]
[1727984483488,8.49969,2353.1,2352.8,0.08321867]
[1727984483700,4.25007,2352.9,2352.8,0.08321867]
[1727984483845,4.25007,2352.9,2352.5,4.84080914]
[1727984484047,4.25007,2352.9,2352.6,0.08334496]
[1727984484278,5.00508,2352.8,2352.6,0.08334496]
[1727984484465,4.25043,2352.7,2352.6,0.08334496]
[1727984484663,4.25109,2352.4,2352.1,0.8242]
[1727984484866,4.25117,2352.3,2352.2,0.08359759]
[1727984485293,5.07469,2352.4,2351.9,9.09537914]
[1727984485597,5.07469,2352.4,2352.2,0.08359759]
[1727984485755,5.07466,2352.4,2352.0,4.25169]
[1727984486080,5.07466,2352.4,2351.9,9.09537914]
[1727984486249,5.07466,2352.4,2352.1,0.08366076]
[1727984486592,5.07466,2352.4,2351.9,9.09535914]
[1727984486904,5.07466,2352.4,2351.9,13.34709914]
[1727984487070,5.07466,2352.4,2352.0,0.08372393]
[1727984487254,5.07466,2352.4,2352.0,4.33537393]
[1727984487454,0.8236,2352.4,2352.0,4.33537393]
[1727984487791,5.07465,2352.4,2352.0,0.08372393]
[1727984488521,5.07465,2352.4,2352.0,4.33539393]
[1727984488720,6.007208,2352.4,2352.0,4.33539393]
[1727984489226,6.007208,2352.4,2352.0,0.08372393]
[1727984489387,6.007208,2352.4,2352.0,4.33537393]
[1727984490092,10.258308,2352.4,2352.0,4.33537393]
[1727984490391,6.007208,2352.4,2352.0,4.33537393]
[1727984490790,1.756158,2352.4,2352.0,8.58697393]
[1727984490995,6.007148,2352.4,2352.0,4.33532393]
[1727984494118,6.007148,2352.4,2352.0,8.58690393]
[1727984494419,5.07459,2352.4,2352.0,4.33530393]
[1727984496122,5.07459,2352.4,2352.0,8.58690393]
[1727984496426,5.07459,2352.4,2352.0,4.33530393]
[1727984497919,5.07459,2352.4,2352.0,8.58684393]
[1727984498130,5.07459,2352.4,2352.0,4.33526393]
[1727984498821,8.82567,2352.4,2352.0,4.33526393]
[1727984499057,4.57459,2352.4,2352.0,4.33526393]
[1727984499524,4.57459,2352.4,2352.0,4.85595601]
[1727984499722,8.82573,2352.4,2352.0,4.85595601]
[1727984499903,4.57459,2352.4,2352.0,4.85595601]
[1727984500624,4.25116,2352.3,2352.0,0.60441601]
[1727984500830,4.57462,2352.4,2352.0,4.85610601]
[1727984501025,4.25124,2352.3,2352.0,0.60441601]
[1727984501830,4.57465,2352.4,2352.0,4.85608601]
[1727984502339,8.82573,2352.4,2352.0,4.85608601]
[1727984502495,4.57465,2352.4,2352.0,4.85608601]
[1727984502696,4.57465,2352.4,2352.0,4.33539393]
[1727984503346,4.57465,2352.4,2352.1,4.06620914]
[1727984503716,4.57465,2352.4,2352.2,0.08417405]
[1727984504646,8.82573,2352.4,2352.2,0.08417405]
[1727984505442,4.25115,2352.3,2352.2,0.08417405]
[1727984505953,4.25115,2352.3,2351.9,4.84360914]
[1727984506243,4.25115,2352.3,2352.2,0.08128197]
[1727984506418,4.25115,2352.3,2351.9,4.84360914]
[1727984506621,4.25115,2352.3,2352.2,0.08128197]
[1727984507134,4.25136,2352.2,2351.9,6.17835805]
[1727984507431,4.25136,2352.2,2351.9,4.84360914]
[1727984507611,4.25137,2352.2,2351.9,4.84360914]
[1727984507818,4.25137,2352.2,2351.9,6.17784162]
[1727984508060,4.25137,2352.2,2351.9,4.84360914]
[1727984508349,4.25119,2352.3,2351.9,4.84360914]
[1727984508558,4.25136,2352.2,2351.9,4.84360914]
[1727984509112,4.25119,2352.3,2351.7,4.88160914]
[1727984509113,4.25155,2352.1,2351.7,4.88160914]
[1727984509321,4.25096,2352.5,2352.0,0.8154]
[1727984509654,4.251,2352.4,2352.1,4.06620914]
[1727984510150,4.25124,2352.3,2352.1,4.06620914]
[1727984512566,8.50249,2352.3,2352.1,4.06620914]
[1727984512779,4.25124,2352.3,2352.1,4.06620914]
[1727984513129,4.25133,2352.2,2352.1,4.06620914]
[1727984513326,4.25133,2352.2,2352.0,0.8154]
[1727984514272,4.25176,2352.0,2351.8,0.8154]
[1727984514481,8.50363,2352.0,2351.8,0.8154]
[1727984514775,4.25176,2352.0,2351.8,0.8154]
[1727984514930,8.50363,2352.0,2351.7,4.06620914]
[1727984515127,4.25176,2352.0,2351.7,4.06620914]
[1727984515349,8.50357,2352.0,2351.7,4.06620914]
[1727984515556,4.25176,2352.0,2351.7,4.06620914]
[1727984516271,4.25176,2352.0,2351.7,5.58284816]
[1727984516477,4.25155,2352.1,2351.7,9.83501816]
[1727984518974,4.25172,2352.0,2351.6,11.10011108]
[1727984519175,4.25172,2352.0,2351.6,5.06772]
[1727984519475,4.25155,2352.1,2351.7,8.31843914]
[1727984519988,4.25155,2352.1,2351.8,0.07631282]
[1727984520359,4.25178,2352.0,2351.8,0.07631282]
[1727984520849,4.25155,2352.1,2351.8,0.07631282]
[1727984521614,5.0745,2352.2,2351.9,4.06620914]
[1727984521763,4.25153,2352.1,2351.9,4.06620914]
[1727984521964,5.07451,2352.2,2352.0,0.07627678]
[1727984523846,4.25104,2352.4,2352.0,0.89117678]
[1727984524151,4.25122,2352.3,2352.0,0.89117678]
[1727984524388,4.25134,2352.2,2352.0,0.07627678]
[1727984524744,4.25134,2352.2,2351.8,5.06692]
[1727984525057,4.32474804,2352.3,2352.1,0.07618219]
[1727984525256,4.32474804,2352.3,2351.9,4.25186]
[1727984525484,4.32474804,2352.3,2352.2,0.07611901]
[1727984525697,0.7951,2352.2,2351.9,4.25186]
[1727984526719,4.32474804,2352.3,2351.9,8.31806914]
[1727984527414,4.25135,2352.2,2351.9,8.31806914]
[1727984527578,4.32467804,2352.3,2351.9,8.31806914]
[1727984527777,4.32467804,2352.3,2351.9,9.65658905]
[1727984528189,4.25122,2352.3,2351.9,9.65658905]
[1727984529397,4.25134,2352.2,2351.9,4.06620914]
[1727984529791,4.25134,2352.2,2351.8,9.31883]
[1727984530006,4.25134,2352.2,2351.9,4.06620914]
[1727984530397,4.25134,2352.2,2351.9,8.31807914]
[1727984530915,5.0056,2352.4,2351.9,8.31807914]
[1727984531078,4.251,2352.4,2352.2,0.7529]
[1727984531275,0.8331,2352.7,2352.4,4.25097]
[1727984531637,5.0832,2352.9,2352.5,9.06981914]
[1727984531824,4.2501,2352.9,2352.5,9.06981914]
[1727984531980,4.24989,2353.0,2352.7,4.06620914]
[1727984531981,4.2499,2353.0,2352.7,4.06620914]
[1727984532928,8.49993,2353.0,2352.7,4.06620914]
[1727984533127,4.25023,2352.9,2352.7,4.06620914]
[1727984533747,4.2499,2353.0,2352.7,4.06620914]
[1727984534236,8.4999,2353.0,2352.7,4.06620914]
[1727984534403,5.08284,2353.1,2352.7,4.06620914]
[1727984534608,4.24991,2353.0,2352.8,0.8152]
[1727984534921,4.24991,2353.0,2352.8,0.89071629]
[1727984536230,4.25007,2352.9,2352.8,0.89071629]
[1727984536801,7.2496,2353.2,2352.8,5.14094629]
[1727984537018,7.2496,2353.2,2352.9,4.06620914]
[1727984537201,11.49923,2353.2,2352.9,4.14162305]
[1727984537445,7.2496,2353.2,2352.9,4.14162305]
[1727984537601,4.24989,2353.0,2352.9,0.07541391]
[1727984539115,4.24989,2353.0,2352.6,0.7534]
[1727984539116,4.25008,2352.9,2352.6,0.7534]
[1727984539318,4.25008,2352.9,2352.6,2.08553391]
[1727984540015,4.25043,2352.7,2352.5,4.06620914]
[1727984540314,4.25066,2352.6,2352.4,0.787]
[1727984540628,4.25079,2352.5,2352.4,0.787]
[1727984540943,4.25063,2352.6,2352.4,0.787]
[1727984541142,8.50137,2352.6,2352.4,0.787]
[1727984541304,4.25063,2352.6,2352.3,4.85370914]
[1727984541634,4.25079,2352.5,2352.3,4.85370914]
[1727984541938,4.25063,2352.6,2352.3,4.85370914]
[1727984542152,5.02496,2352.7,2352.3,4.85370914]
[1727984543607,4.25068,2352.6,2352.3,4.85370914]
[1727984544281,5.02497,2352.7,2352.3,9.10485914]
[1727984544479,9.2755,2352.7,2352.3,9.10485914]
[1727984544679,5.02497,2352.7,2352.3,9.10485914]
[1727984545794,5.02497,2352.7,2352.3,4.85370914]
[1727984545995,4.25099,2352.4,2352.0,5.05597]
[1727984546203,1.276997,2352.7,2351.7,4.06620914]
[1727984546204,4.25151,2352.1,2351.7,4.06620914]
[1727984546412,4.2518,2352.0,2351.6,0.8043]
[1727984546613,4.25219,2351.8,2351.3,14.35138022]
[1727984546798,4.25219,2351.8,2351.3,9.08748914]
[1727984546799,4.25225,2351.7,2351.3,9.08748914]
[1727984546991,4.25225,2351.7,2351.4,0.90874891]
[1727984547214,4.25227,2351.7,2351.4,0.90874891]
[1727984547515,0.7902,2351.4,2351.1,4.06620914]
[1727984547718,5.04308,2351.4,2351.0,4.25348]
[1727984547915,5.04308,2351.4,2350.9,9.09656914]
[1727984548113,4.25305,2351.3,2350.9,9.09651914]
[1727984548267,4.25305,2351.3,2350.9,10.5649773]
[1727984548786,5.04301,2351.4,2351.0,4.25341]
[1727984549382,4.25298,2351.3,2350.9,10.5650273]
[1727984549672,5.04301,2351.4,2351.0,4.2535]
[1727984550005,5.04301,2351.4,2351.0,4.32744191]
[1727984550170,0.7902,2351.4,2351.0,4.32744191]
[1727984550374,0.833,2351.6,2351.2,4.25314]
[1727984550672,0.833,2351.6,2351.2,4.25302]
[1727984550986,3.0,2351.7,2351.3,9.19871138]
[1727984551188,7.25189,2351.9,2351.5,4.06620914]
[1727984551393,3.0,2351.9,2351.5,8.31870914]
[1727984551590,3.0,2351.9,2351.6,0.07413204]
[1727984551883,7.25193,2351.9,2351.6,0.07413204]
[1727984552471,11.50395,2351.9,2351.6,0.07413204]
[1727984552677,11.50394,2351.9,2351.6,0.07413204]
[1727984552878,7.25193,2351.9,2351.6,0.07413204]
[1727984553223,11.5039,2351.9,2351.6,0.07413204]
[1727984554275,4.25206,2351.8,2351.6,0.07413204]
[1727984554693,7.25193,2351.9,2351.6,0.07413204]
[1727984555389,0.8327,2352.0,2351.6,1.69813216]
[1727984555584,0.8327,2352.0,2351.7,8.31833914]
[1727984555585,3.0,2352.0,2351.7,8.31833914]
[1727984555792,4.25153,2352.1,2351.7,8.39240799]
[1727984556815,4.25148,2352.2,2351.7,4.14027799]
[1727984556816,4.25195,2351.9,2351.7,4.14027799]
[1727984557177,4.25195,2351.9,2351.7,0.07406885]
[1727984559187,4.25206,2351.8,2351.7,0.07406885]
[1727984560588,8.50394,2351.9,2351.7,0.07406885]
[1727984562077,4.25195,2351.9,2351.7,0.07406885]
[1727984562516,8.50393,2351.9,2351.7,0.07406885]
[1727984563064,4.25195,2351.9,2351.7,0.07406885]
[1727984563223,4.25195,2351.9,2351.7,1.01045174]
[1727984563415,8.50395,2351.9,2351.7,1.01045174]
[1727984563609,8.50395,2351.9,2351.7,0.07406885]
[1727984563823,4.25195,2351.9,2351.7,0.07406885]
[1727984564158,4.25206,2351.8,2351.7,0.07406885]
[1727984564662,4.25206,2351.8,2351.7,0.07383315]
[1727984564842,4.25206,2351.8,2351.4,5.03578]
[1727984565050,4.25206,2351.8,2351.7,0.07383315]
[1727984565217,4.25206,2351.8,2351.5,0.928858]
[1727984565415,4.25195,2351.9,2351.7,0.07383315]
[1727984565629,4.25213,2351.8,2351.4,0.783]
[1727984565835,5.05538,2351.9,2351.8,0.07376995]
[1727984566032,5.05538,2351.9,2351.1,0.7922]
[1727984566033,3.0,2351.8,2351.1,0.7922]
[1727984566212,4.25304,2351.3,2351.0,6.03239108]
[1727984566417,4.25304,2351.3,2351.2,0.07198243]
[1727984566785,5.05646,2351.4,2350.6,0.7527]
[1727984566786,0.8035,2351.4,2350.6,0.7527]
[1727984566944,8.08156,2351.3,2351.2,0.06963327]
[1727984567268,8.08156,2351.3,2350.6,0.7527]
[1727984567269,4.25363,2351.0,2350.6,5.00683]
[1727984567413,4.25334,2351.1,2350.7,4.25396]
[1727984567854,4.25334,2351.1,2350.6,5.00683]
[1727984568019,4.25334,2351.1,2350.7,4.25404]
[1727984568218,8.50677,2351.1,2350.7,1.21368885]
[1727984568557,3.8286,2351.3,2350.9,0.7527]
[1727984568558,8.08166,2351.3,2350.9,0.7527]
[1727984568777,7.25306,2351.3,2350.9,5.0063]
[1727984568955,4.25306,2351.3,2350.9,5.0063]
[1727984569118,3.0,2351.4,2351.1,4.25329]
[1727984569469,3.0,2351.4,2351.2,0.8084]
[1727984569966,4.25246,2351.6,2351.2,5.993035]
[1727984571546,4.25225,2351.7,2351.3,4.25295]
[1727984571981,7.25189,2351.9,2351.5,4.25252]
[1727984572879,8.50365,2352.0,2351.5,4.25252]
[1727984573181,3.0,2352.2,2351.6,5.03174]
[1727984573482,4.2517,2352.0,2351.6,5.534974]
[1727984574323,4.2516,2352.1,2351.6,5.534974]
[1727984574324,4.25218,2351.8,2351.6,0.7794]
[1727984574479,4.25224,2351.7,2351.4,0.7794]
[1727984575064,4.25218,2351.8,2351.4,0.7794]
[1727984575436,4.25218,2351.8,2351.4,5.03216]
[1727984576593,4.25218,2351.8,2351.4,0.7794]
[1727984576895,4.25217,2351.8,2351.4,0.7794]
[1727984577106,4.25217,2351.8,2351.4,5.03205]
[1727984577284,4.25217,2351.8,2351.4,6.0536925]
[1727984577490,5.01921,2351.9,2351.4,6.0536925]
[1727984577981,5.01921,2351.9,2351.5,4.25259]
[1727984579904,5.01921,2351.9,2351.6,0.06248536]
[1727984580196,5.01921,2351.9,2351.5,4.25259]
[1727984580511,0.7673,2351.9,2351.7,0.06242216]
[1727984580652,4.25206,2351.8,2351.6,0.06248536]
[1727984581000,4.25206,2351.8,2351.7,0.06242216]
[1727984581304,5.01921,2351.9,2351.4,9.28476]
[1727984581508,9.27124,2351.9,2351.7,0.06242216]
[1727984581650,4.25233,2351.7,2351.3,4.25296]
[1727984582017,4.25243,2351.6,2351.2,5.03072]
[1727984582353,4.25262,2351.5,2351.2,0.7776]
[1727984582555,9.31034,2351.6,2351.2,0.7776]
[1727984582756,9.31034,2351.6,2350.9,5.06676]
[1727984582757,4.25289,2351.4,2350.9,5.06676]
[1727984582977,4.25298,2351.3,2350.9,5.06676]
[1727984583855,4.25289,2351.4,2350.9,9.32032]
[1727984584201,8.50579,2351.4,2350.9,5.06676]
[1727984584405,4.25289,2351.4,2350.9,9.3203]
[1727984584605,4.25289,2351.4,2351.0,4.25348]
[1727984584915,8.50579,2351.4,2351.0,4.25348]
[1727984585196,1.0242224,2351.4,2351.1,4.25332]
[1727984585514,1.0242224,2351.4,2351.0,4.25348]
[1727984585515,4.25278,2351.4,2351.0,4.25348]
[1727984585718,3.8054,2351.6,2350.9,0.8132]
[1727984585919,3.0,2351.6,2351.3,0.7784]
[1727984586122,3.0,2351.6,2351.3,5.03131]
[1727984586325,8.08448,2351.8,2351.4,4.25277]
[1727984586479,8.08448,2351.8,2351.3,5.03131]
[1727984586480,9.318128,2351.8,2351.3,5.03131]
[1727984586680,4.25153,2352.1,2351.6,0.7786]
[1727984586681,4.2518,2352.0,2351.6,0.7786]
[1727984587008,4.25172,2352.0,2351.6,5.03099]
[1727984587211,4.25172,2352.0,2351.6,0.7786]
[1727984587212,8.50354,2352.0,2351.6,0.7786]
[1727984587512,4.25196,2351.9,2351.6,0.7786]
[1727984587677,4.25172,2352.0,2351.6,0.7786]
[1727984587878,4.25192,2351.9,2351.6,0.7786]
[1727984594843,0.8324,2352.1,2351.7,0.06241826]
[1727984594996,8.50281,2352.2,2351.8,0.8081]
[1727984595192,8.1388,2352.5,2351.8,0.8081]
[1727984595498,4.25157,2352.1,2351.8,0.8081]
[1727984595696,4.25174,2352.0,2351.8,0.8081]
[1727984595938,4.25174,2352.0,2351.9,0.0622997]
[1727984596548,5.184951,2352.0,2351.9,0.0622997]
[1727984596898,5.184951,2352.0,2351.6,4.25239]
[1727984597102,4.25174,2352.0,2351.9,0.0622997]
[1727984597640,4.25174,2352.0,2351.6,4.25239]
[1727984597793,4.25174,2352.0,2351.9,0.0622997]
[1727984597997,4.25174,2352.0,2351.6,4.25239]
[1727984598197,4.25174,2352.0,2351.7,0.06242608]
[1727984599013,5.08023,2352.2,2351.7,0.06242608]
[1727984599346,4.25154,2352.1,2351.7,4.31464608]
[1727984599906,4.25171,2352.0,2351.7,0.06242608]
[1727984600508,4.25154,2352.1,2351.7,4.31464608]
[1727984603153,4.25154,2352.1,2351.7,0.06242608]
[1727984603298,4.25206,2351.8,2351.7,0.06242608]
[1727984603498,5.01786,2351.8,2351.7,0.06242608]
[1727984603704,5.01786,2351.8,2351.3,10.28535108]
[1727984603705,4.25244,2351.6,2351.3,0.7875]
[1727984603949,4.25282,2351.4,2351.1,0.7514]
[1727984604661,4.25261,2351.5,2351.1,0.7514]
[1727984605023,9.355847,2351.5,2351.1,0.7514]
[1727984605216,4.25296,2351.3,2350.9,4.25367]
[1727984605420,0.7673,2351.4,2350.9,4.25367]
[1727984605421,5.02022,2351.4,2350.9,4.25367]
[1727984605660,4.25297,2351.3,2350.9,4.25367]
[1727984605842,4.25306,2351.3,2350.9,4.25367]
[1727984606037,5.2654397,2351.3,2350.9,4.25367]
[1727984606448,5.26439535,2351.3,2350.9,4.25367]
[1727984607272,1.0123797,2351.3,2350.9,4.25367]
[1727984607467,4.253,2351.3,2350.9,4.25367]
[1727984608166,4.253,2351.3,2350.7,4.25403]
[1727984608470,4.25316,2351.2,2350.8,5.08595]
[1727984609931,5.02013,2351.4,2350.9,0.06091433]
[1727984610268,4.25297,2351.3,2350.9,0.06091433]
[1727984610441,4.755177,2351.2,2350.9,0.06091433]
[1727984610629,0.502027,2351.2,2350.9,4.31456433]
[1727984610831,5.02011,2351.4,2350.9,4.31456433]
[1727984611070,0.7673,2351.4,2351.0,4.25346]
[1727984611232,3.7673,2351.4,2351.0,4.25346]
[1727984611567,8.02016,2351.4,2351.1,0.06078786]
[1727984612109,4.25297,2351.3,2351.2,0.06072464]
[1727984612407,5.480283,2351.3,2351.2,0.06072464]
[1727984612769,5.480283,2351.3,2350.9,4.25365]
[1727984612985,4.25297,2351.3,2351.2,0.06072464]
[1727984613189,4.25297,2351.3,2350.9,4.25365]
[1727984613795,4.25297,2351.3,2351.0,0.06085109]
[1727984617118,4.69688762,2351.7,2351.1,0.8192]
[1727984617401,4.25254,2351.6,2351.1,9.32564]
[1727984617584,4.25254,2351.6,2351.2,0.061049]
[1727984618403,4.25262,2351.5,2351.2,0.061049]
[1727984619459,4.2529,2351.4,2351.2,0.061049]
[1727984620382,5.04642,2351.5,2351.2,0.061049]
[1727984620587,4.25262,2351.5,2351.2,0.061049]
[1727984621127,8.02004,2351.9,2351.2,5.2527829]
[1727984621329,4.25232,2351.7,2351.3,5.00888]
[1727984621626,7.25208,2351.8,2351.4,4.31369257]
[1727984621832,12.77416405,2352.1,2351.7,0.756]
[1727984622029,12.77416405,2352.1,2351.8,4.25193]
[1727984622030,0.44454405,2352.1,2351.8,4.25193]
[1727984622200,4.25171,2352.0,2351.7,0.756]
[1727984622538,4.25189,2351.9,2351.8,0.06066977]
[1727984622889,4.25189,2351.9,2351.6,0.7744]
[1727984623089,4.25189,2351.9,2351.8,0.06073619]
[1727984623298,4.25189,2351.9,2351.6,0.7744]
[1727984623748,4.25189,2351.9,2351.7,0.06079938]
[1727984623913,0.768,2352.3,2351.7,0.56957132]
[1727984624125,4.25142,2352.2,2351.7,4.82169132]
[1727984624849,4.25142,2352.2,2351.8,5.05434]
[1727984625010,4.25142,2352.2,2351.8,0.86299321]
[1727984625209,4.25161,2352.1,2351.8,0.06069321]
[1727984625430,5.05768,2351.9,2351.3,10.28525108]
[1727984625626,5.05768,2351.9,2351.4,0.86327336]
[1727984625627,4.25217,2351.8,2351.4,0.86327336]
[1727984625943,4.25225,2351.7,2351.4,0.86327336]
[1727984626453,8.0433,2351.5,2351.4,0.06097336]
[1727984626666,8.0433,2351.5,2350.9,0.7763]
[1727984626667,3.7907,2351.5,2350.9,0.7763]
[1727984626812,0.804316,2351.4,2351.0,4.25346]
[1727984627149,3.7907,2351.5,2351.1,4.25321]
[1727984627150,8.04334,2351.5,2351.1,4.25321]
[1727984627510,8.04334,2351.5,2351.0,4.25346]
[1727984628342,4.25281,2351.4,2351.0,4.25346]
[1727984630249,4.25281,2351.4,2350.9,5.02995]
[1727984630683,4.25296,2351.3,2350.9,5.02995]
[1727984631174,4.25281,2351.4,2351.0,4.2534]
[1727984631752,4.25281,2351.4,2351.0,4.25348]
[1727984632157,8.50571,2351.4,2351.0,4.25348]
[1727984632447,4.25281,2351.4,2350.9,9.28344]
[1727984632653,4.25281,2351.4,2351.0,4.25349]
[1727984632953,7.25268,2351.5,2351.1,4.25331]
[1727984633165,7.25268,2351.5,2351.2,0.7926]
[1727984633474,4.25252,2351.6,2351.2,5.04571]
[1727984633753,4.25262,2351.5,2351.2,0.7926]
[1727984637541,4.25299,2351.3,2350.9,0.8295]
[1727984638253,4.25347,2351.1,2350.9,0.8295]
[1727984638473,5.181207,2351.5,2350.5,6.79439108]
[1727984638474,0.8307,2351.0,2350.5,6.79439108]
[1727984638679,8.50763,2350.9,2350.5,0.762]
[1727984638978,4.2538,2350.9,2350.5,0.762]
[1727984639275,4.25387,2350.8,2350.5,0.762]
[1727984639447,4.2538,2350.9,2350.5,5.0164]
[1727984639645,4.25388,2350.8,2350.5,0.762]